bitfinex/quotes_BTCUSD_20250602
["timestamp","ask_amount","ask_price","bid_price","bid_amount"]
[1748877610032,0.04047476,104400.0,104390.0,0.59557376]
[1748877610484,0.04940689,104400.0,104390.0,0.2835943]
[1748877610699,0.26077989,104400.0,104390.0,0.44624]
[1748877610914,0.25120208,104400.0,104390.0,0.09624]
[1748877611133,0.31012608,104400.0,104390.0,0.10624]
[1748877611342,0.31012608,104400.0,104390.0,0.052]
[1748877611343,0.25120208,104400.0,104390.0,0.052]
[1748877611552,0.25470208,104400.0,104390.0,0.052]
[1748877611763,0.25470208,104400.0,104390.0,0.001]
[1748877611983,0.20117552,104390.0,104370.0,0.13294138]
[1748877612192,0.00957964,104380.0,104370.0,0.43773643]
[1748877612381,0.01915946,104380.0,104370.0,0.77534138]
[1748877612785,0.00957964,104380.0,104370.0,0.82534138]
[1748877613005,0.02873654,104390.0,104380.0,0.06]
[1748877613215,0.02873654,104390.0,104380.0,0.0763]
[1748877613427,0.03831563,104390.0,104380.0,0.0763]
[1748877613640,0.25251239,104400.0,104380.0,0.26790758]
[1748877613845,0.06163065,104400.0,104390.0,0.05]
[1748877614053,0.07120891,104400.0,104390.0,0.0753]
[1748877614226,0.08009736,104400.0,104390.0,0.0753]
[1748877614431,0.07120882,104400.0,104390.0,0.0753]
[1748877614632,0.06920882,104400.0,104390.0,0.0753]
[1748877614839,0.07878718,104400.0,104390.0,0.0753]
[1748877615431,0.06920882,104400.0,104390.0,0.0753]
[1748877615845,0.08078718,104400.0,104390.0,0.0753]
[1748877616047,0.07120882,104400.0,104390.0,0.0753]
[1748877616220,0.04247476,104400.0,104390.0,1.14701532]
[1748877616457,0.04247476,104400.0,104390.0,1.14462089]
[1748877616678,0.04447476,104400.0,104390.0,1.1541998]
[1748877616845,0.04447476,104400.0,104390.0,1.16377861]
[1748877617050,0.04447476,104400.0,104390.0,1.1541998]
[1748877617278,0.04447476,104400.0,104390.0,1.13504189]
[1748877617483,0.04447476,104400.0,104390.0,1.13504198]
[1748877617817,0.05405247,104400.0,104390.0,1.1254628]
[1748877617940,0.05405247,104400.0,104390.0,0.9242943]
[1748877618137,0.04447476,104400.0,104390.0,0.93387376]
[1748877618344,0.04447476,104400.0,104390.0,1.13504217]
[1748877618739,0.0534051,104400.0,104390.0,1.13504217]
[1748877619160,0.06363037,104400.0,104390.0,0.93387376]
[1748877619331,0.06298282,104400.0,104390.0,1.13504226]
[1748877619542,0.04447476,104400.0,104390.0,1.13504235]
[1748877619743,0.0534051,104400.0,104390.0,1.14684373]
[1748877619949,0.04447476,104400.0,104390.0,1.14684373]
[1748877620143,0.04447476,104400.0,104390.0,0.94567514]
[1748877620373,0.06298331,104400.0,104390.0,1.14684373]
[1748877620590,0.04447476,104400.0,104390.0,1.156423]
[1748877620795,0.04447476,104400.0,104390.0,1.16600218]
[1748877621332,0.04447476,104400.0,104390.0,1.156423]
[1748877622163,0.04447476,104400.0,104390.0,0.758783]
[1748877622362,0.05405247,104400.0,104390.0,1.156303]
[1748877622779,0.04447476,104400.0,104390.0,1.156303]
[1748877623135,0.04447476,104400.0,104390.0,1.17546053]
[1748877623332,0.04447476,104400.0,104390.0,1.16588172]
[1748877623741,0.04447476,104400.0,104390.0,1.17546008]
[1748877624114,0.05340558,104400.0,104390.0,1.17546008]
[1748877624318,0.04447476,104400.0,104390.0,1.17546008]
[1748877624725,0.05340317,104400.0,104390.0,1.17546008]
[1748877624903,0.04447476,104400.0,104390.0,1.17546008]
[1748877625102,0.05340204,104400.0,104390.0,1.17546008]
[1748877625305,0.05340173,104400.0,104390.0,1.17546008]
[1748877625504,0.04447476,104400.0,104390.0,1.17546008]
[1748877626283,0.05340144,104400.0,104390.0,1.17546008]
[1748877626486,0.04447476,104400.0,104390.0,1.17546008]
[1748877627134,0.05340151,104400.0,104390.0,1.17546008]
[1748877627316,0.04247476,104400.0,104390.0,1.17546008]
[1748877628558,0.04047476,104400.0,104390.0,1.17546008]
[1748877628774,0.04047476,104400.0,104390.0,1.17646008]
[1748877628987,0.04940446,104400.0,104390.0,1.17646008]
[1748877629239,0.04047476,104400.0,104390.0,1.17746008]
[1748877629899,0.04940501,104400.0,104390.0,1.17746008]
[1748877630098,0.04047476,104400.0,104390.0,1.17746008]
[1748877631283,0.04940469,104400.0,104390.0,1.17746008]
[1748877631492,0.04047476,104400.0,104390.0,1.17746008]
[1748877631666,0.04940468,104400.0,104390.0,1.17746008]
[1748877631863,0.04047476,104400.0,104390.0,1.17746008]
[1748877632126,0.04940467,104400.0,104390.0,1.17746008]
[1748877633706,0.05833449,104400.0,104390.0,1.17746008]
[1748877633908,0.04940467,104400.0,104390.0,1.17746008]
[1748877634406,0.04940467,104400.0,104390.0,1.57746008]
[1748877634700,0.05833451,104400.0,104390.0,1.57746008]
[1748877634848,0.04940467,104400.0,104390.0,1.57746008]
[1748877635470,0.04940467,104400.0,104390.0,1.17746008]
[1748877635697,0.05833441,104400.0,104390.0,0.87510008]
[1748877635993,0.04940467,104400.0,104390.0,1.16784117]
[1748877636199,0.05833358,104400.0,104390.0,1.16784117]
[1748877636450,0.05833387,104400.0,104390.0,1.16784117]
[1748877636588,0.05833401,104400.0,104390.0,1.16784117]
[1748877637555,0.05832429,104400.0,104390.0,1.16784117]
[1748877637759,0.05832434,104400.0,104390.0,1.16784117]
[1748877637959,0.05832437,104400.0,104390.0,1.16784117]
[1748877638159,0.04940467,104400.0,104390.0,1.16784117]
[1748877638707,0.05832438,104400.0,104390.0,1.16784117]
[1748877638902,0.04940467,104400.0,104390.0,1.16784117]
[1748877639612,0.04940467,104400.0,104390.0,0.77036117]
[1748877639819,0.04940467,104400.0,104390.0,1.16780117]
[1748877640812,0.05833199,104400.0,104390.0,1.16780117]
[1748877641025,0.04940467,104400.0,104390.0,1.16780117]
[1748877641430,0.05833205,104400.0,104390.0,1.16780117]
[1748877642081,0.04940467,104400.0,104390.0,1.16780117]
[1748877642452,0.04940467,104400.0,104390.0,0.77036117]
[1748877642686,0.04940467,104400.0,104390.0,1.16780117]
[1748877643125,0.05833254,104400.0,104390.0,1.16780117]
[1748877643326,0.04940467,104400.0,104390.0,1.16780117]
[1748877643942,0.05833357,104400.0,104390.0,1.16780117]
[1748877644709,0.04940467,104400.0,104390.0,1.16780117]
[1748877645075,0.05833357,104400.0,104390.0,1.16780117]
[1748877645281,0.04940467,104400.0,104390.0,1.16780117]
[1748877646103,0.0583348,104400.0,104390.0,1.16780117]
[1748877646322,0.04940467,104400.0,104390.0,1.16780117]
[1748877647255,0.05833335,104400.0,104390.0,1.14864336]
[1748877647470,0.05833335,104400.0,104390.0,0.21481568]
[1748877647471,0.26971007,104400.0,104390.0,0.21481568]
[1748877647624,0.28417572,104400.0,104390.0,0.02380138]
[1748877647802,0.28767572,104400.0,104390.0,0.02380138]
[1748877648006,0.29660521,104400.0,104390.0,0.02380138]
[1748877648226,0.26363217,104400.0,104390.0,0.02380138]
[1748877648423,0.26363217,104400.0,104390.0,0.07280138]
[1748877648621,0.26013217,104400.0,104390.0,0.07280138]
[1748877648823,0.27106332,104400.0,104390.0,0.07280138]
[1748877649025,0.26213217,104400.0,104390.0,0.07280138]
[1748877649564,0.07056129,104400.0,104390.0,0.07180138]
[1748877649791,0.08213983,104400.0,104390.0,0.07180138]
[1748877649967,0.01915937,104380.0,104370.0,0.01]
[1748877650351,0.02873938,104380.0,104370.0,0.01]
[1748877650550,0.04725184,104380.0,104370.0,0.01]
[1748877650754,0.02873938,104380.0,104370.0,0.01]
[1748877651036,0.02873947,104380.0,104370.0,0.10512]
[1748877651237,0.02873938,104380.0,104370.0,0.15612]
[1748877651440,0.02873938,104380.0,104370.0,0.15712]
[1748877651856,0.03767167,104380.0,104370.0,0.15712]
[1748877652066,0.0376726,104380.0,104370.0,0.15712]
[1748877652273,0.02873938,104380.0,104370.0,0.15712]
[1748877652460,0.03767259,104380.0,104370.0,0.15712]
[1748877652661,0.02873938,104380.0,104370.0,0.15712]
[1748877653083,0.04725288,104380.0,104370.0,0.15712]
[1748877653292,0.02873938,104380.0,104370.0,0.15712]
[1748877653501,0.03767267,104380.0,104370.0,0.15712]
[1748877653702,0.02873938,104380.0,104370.0,0.15712]
[1748877653903,0.01915937,104380.0,104370.0,0.15712]
[1748877654312,0.01915937,104380.0,104370.0,0.17342]
[1748877654537,0.02873929,104380.0,104370.0,0.17342]
[1748877654751,0.03831939,104380.0,104370.0,0.17342]
[1748877656106,0.02873947,104380.0,104370.0,0.17342]
[1748877656281,0.03767399,104380.0,104370.0,0.19002]
[1748877656491,0.02873938,104380.0,104370.0,0.19002]
[1748877656953,0.01915937,104380.0,104370.0,0.0949]
[1748877657271,0.02873938,104380.0,104370.0,0.19002]
[1748877657471,0.02873938,104380.0,104370.0,0.14002]
[1748877657690,0.02873938,104380.0,104370.0,0.19002]
[1748877659009,0.03767362,104380.0,104370.0,0.19002]
[1748877659219,0.03831957,104380.0,104370.0,0.19002]
[1748877659450,0.03831957,104380.0,104370.0,0.17342]
[1748877659658,0.03831957,104380.0,104370.0,0.12342]
[1748877659859,0.21076778,104380.0,104370.0,0.10712]
[1748877660056,0.2300047,104380.0,104370.0,0.10712]
[1748877660522,0.21076778,104380.0,104370.0,0.10712]
[1748877660886,0.02809367,104380.0,104370.0,0.18952]
[1748877661071,0.22993169,104390.0,104370.0,0.18952]
[1748877661072,0.028763,104390.0,104380.0,0.06]
[1748877661302,0.06707853,104390.0,104380.0,0.0924]
[1748877661636,0.07600946,104390.0,104380.0,0.0924]
[1748877661861,0.07665789,104390.0,104380.0,0.0924]
[1748877662667,0.05749935,104390.0,104380.0,0.0924]
[1748877662884,0.07665753,104390.0,104380.0,0.0924]
[1748877663285,0.07665826,104390.0,104380.0,0.0924]
[1748877663749,0.0670789,104390.0,104380.0,0.0924]
[1748877663943,0.07600865,104390.0,104380.0,0.0924]
[1748877664194,0.08493792,104390.0,104380.0,0.0924]
[1748877664447,0.07600865,104390.0,104380.0,0.0924]
[1748877664675,0.07535868,104390.0,104380.0,0.0924]
[1748877664875,0.06577948,104390.0,104380.0,0.0924]
[1748877665154,0.08493805,104390.0,104380.0,0.0924]
[1748877665971,0.0466216,104390.0,104380.0,0.29358777]
[1748877666179,0.02743723,104390.0,104380.0,0.28400758]
[1748877666389,0.03701614,104390.0,104380.0,0.0924]
[1748877666806,0.04594596,104390.0,104380.0,0.0924]
[1748877667016,0.04594593,104390.0,104380.0,0.0924]
[1748877667234,0.03701614,104390.0,104380.0,0.0924]
[1748877667450,0.04594599,104390.0,104380.0,0.0924]
[1748877668073,0.04594935,104390.0,104380.0,0.0924]
[1748877668285,0.04594937,104390.0,104380.0,0.0924]
[1748877668516,0.03701614,104390.0,104380.0,0.0924]
[1748877669603,0.03701623,104390.0,104380.0,0.10198037]
[1748877669823,0.04594947,104390.0,104380.0,0.39464]
[1748877670031,0.02679184,104390.0,104380.0,0.59582795]
[1748877670239,0.03637069,104390.0,104380.0,0.59582795]
[1748877670444,0.02743723,104390.0,104380.0,0.61498842]
[1748877670653,0.03701604,104390.0,104380.0,0.60540823]
[1748877670862,0.04659504,104390.0,104380.0,0.39464]
[1748877671121,0.04594947,104390.0,104380.0,0.40422037]
[1748877671347,0.03701604,104390.0,104380.0,0.40422037]
[1748877671585,0.0178586,104390.0,104380.0,0.70126253]
[1748877671794,0.0178586,104390.0,104380.0,1.13738605]
[1748877677065,0.0178586,104390.0,104380.0,1.06042227]
[1748877681343,0.0178586,104390.0,104380.0,1.06034227]
[1748877681757,0.02679257,104390.0,104380.0,1.06034227]
[1748877681960,0.0178586,104390.0,104380.0,1.06034227]
[1748877682171,0.02679255,104390.0,104380.0,1.06034227]
[1748877682384,0.0178586,104390.0,104380.0,1.06034227]
[1748877688105,0.0178586,104390.0,104380.0,0.73902253]
[1748877688321,0.0178586,104390.0,104380.0,0.7803743]
[1748877688322,0.04659577,104390.0,104380.0,0.7803743]
[1748877688733,0.04659577,104390.0,104380.0,0.35]
[1748877688734,0.0370165,104390.0,104380.0,0.35]
[1748877688956,0.0370165,104390.0,104380.0,0.65212]
[1748877689162,0.0459576,104390.0,104380.0,0.65212]
[1748877689364,0.0370165,104390.0,104380.0,0.65212]
[1748877689808,0.0370165,104390.0,104380.0,0.65204339]
[1748877690008,0.04659577,104390.0,104380.0,0.06]
[1748877690236,0.0370165,104390.0,104380.0,0.36212]
[1748877690458,0.05553624,104390.0,104380.0,0.31212]
[1748877690670,0.04659586,104390.0,104380.0,0.31212]
[1748877690897,0.02743741,104390.0,104380.0,0.36212]
[1748877691104,0.04595675,104390.0,104380.0,0.36212]
[1748877691523,0.05553584,104390.0,104380.0,0.36212]
[1748877691729,0.05552599,104390.0,104380.0,0.36212]
[1748877691965,0.0465955,104390.0,104380.0,0.36212]
[1748877692116,0.0465955,104390.0,104380.0,0.01]
[1748877692331,0.23827797,104390.0,104380.0,0.01]
[1748877692550,0.26895088,104390.0,104380.0,0.01]
[1748877692755,0.26830219,104390.0,104380.0,0.01]
[1748877692955,0.23219897,104390.0,104370.0,0.85256]
[1748877693157,0.01915946,104380.0,104370.0,0.8912543]
[1748877693409,0.02873938,104380.0,104370.0,1.2884143]
[1748877693835,0.03831948,104380.0,104370.0,1.2884143]
[1748877694022,0.03831948,104380.0,104370.0,0.5591943]
[1748877694216,0.04789976,104380.0,104370.0,0.8613143]
[1748877694569,0.04789976,104380.0,104370.0,0.8513143]
[1748877694816,0.0739937,104380.0,104370.0,0.45334]
[1748877695055,0.21076787,104380.0,104370.0,0.10704]
[1748877695298,0.21076787,104380.0,104370.0,0.004]
[1748877695537,0.21076787,104380.0,104370.0,0.012]
[1748877695740,0.01916121,104370.0,104360.0,0.46684]
[1748877695942,0.01916121,104370.0,104360.0,0.8748143]
[1748877695943,0.03832315,104370.0,104360.0,0.8748143]
[1748877696193,0.02874204,104370.0,104360.0,0.5726943]
[1748877696331,0.04790444,104370.0,104360.0,0.77896]
[1748877696873,0.03289199,104380.0,104360.0,0.76536]
[1748877697077,0.02874278,104370.0,104360.0,0.76536]
[1748877697274,0.04725149,104370.0,104360.0,0.76536]
[1748877697492,0.03832315,104370.0,104360.0,0.76536]
[1748877697700,0.02874268,104370.0,104360.0,0.74916]
[1748877697924,0.03767092,104370.0,104360.0,0.74916]
[1748877698097,0.01916157,104370.0,104360.0,0.74916]
[1748877698299,0.02874268,104370.0,104360.0,0.76626]
[1748877698503,0.00958047,104370.0,104360.0,1.0238043]
[1748877698701,0.05021729,104390.0,104370.0,0.0251]
[1748877698940,0.26704448,104390.0,104370.0,0.25178807]
[1748877699195,0.00957955,104380.0,104370.0,0.29220714]
[1748877699413,0.00957955,104380.0,104370.0,0.29220705]
[1748877699623,0.02752992,104390.0,104380.0,0.29208795]
[1748877699827,0.04668764,104390.0,104380.0,0.0909]
[1748877700036,0.05726673,104390.0,104380.0,0.0909]
[1748877700249,0.05626673,104390.0,104380.0,0.0909]
[1748877700458,0.06584609,104390.0,104380.0,0.0909]
[1748877700662,0.065846,104390.0,104380.0,0.0909]
[1748877700896,0.2478566,104390.0,104380.0,0.0909]
[1748877701105,0.05626737,104390.0,104380.0,0.0909]
[1748877701305,0.0466881,104390.0,104380.0,0.0909]
[1748877701445,0.05626737,104390.0,104380.0,0.0909]
[1748877701861,0.23827788,104390.0,104380.0,0.0909]
[1748877702041,0.25085734,104390.0,104380.0,0.0909]
[1748877702247,0.06126811,104390.0,104380.0,0.0909]
[1748877702667,0.25285734,104390.0,104380.0,0.0909]
[1748877702866,0.07020691,104390.0,104380.0,0.0909]
[1748877703068,0.06126811,104390.0,104380.0,0.0909]
[1748877703721,0.25285734,104390.0,104380.0,0.0909]
[1748877703930,0.23369925,104390.0,104380.0,0.05]
[1748877704154,0.24264157,104390.0,104380.0,0.05]
[1748877704358,0.0191601,104380.0,104370.0,0.34392]
[1748877704561,0.0287402,104380.0,104370.0,0.34392]
[1748877704768,0.0287402,104380.0,104370.0,0.0918]
[1748877704914,0.0287402,104380.0,104370.0,0.39392]
[1748877704915,0.02873956,104380.0,104370.0,0.39392]
[1748877705141,0.03831984,104380.0,104370.0,0.39392]
[1748877705337,0.04726187,104380.0,104370.0,0.39392]
[1748877705525,0.04726187,104380.0,104370.0,0.0918]
[1748877705526,0.23986945,104380.0,104370.0,0.0918]
[1748877705751,0.23028939,104380.0,104370.0,0.39388]
[1748877706089,0.22234778,104380.0,104370.0,0.05]
[1748877706299,0.21276796,104380.0,104370.0,0.05]
[1748877706705,0.20318786,104380.0,104370.0,0.05]
[1748877706912,0.01916148,104370.0,104360.0,0.8286]
[1748877707118,0.00958065,104370.0,104360.0,0.8286]
[1748877707328,0.22994882,104370.0,104360.0,0.7786]
[1748877707537,0.21972254,104370.0,104360.0,0.0314]
[1748877707743,0.21972237,104370.0,104360.0,0.0659]
[1748877707941,0.21078807,104370.0,104360.0,0.0659]
[1748877708397,0.1916443,104360.0,104340.0,0.01]
[1748877708587,0.03833105,104350.0,104340.0,0.0416]
[1748877708793,0.22999372,104350.0,104340.0,0.01]
[1748877709174,0.22999372,104350.0,104340.0,0.0259]
[1748877709583,0.22999372,104350.0,104340.0,0.0779]
[1748877709584,0.02874792,104350.0,104340.0,0.0779]
[1748877709758,0.03833096,104350.0,104340.0,0.0918]
[1748877709963,0.02884055,104350.0,104340.0,0.0918]
[1748877710189,0.00967502,104350.0,104340.0,0.0938]
[1748877710393,0.01925769,104350.0,104340.0,0.0938]
[1748877710597,0.19799661,104360.0,104340.0,0.0938]
[1748877710793,0.01916497,104350.0,104340.0,0.09428454]
[1748877711491,0.01916506,104350.0,104340.0,0.09628454]
[1748877711696,0.00958239,104350.0,104340.0,0.09628454]
[1748877711895,0.00958239,104350.0,104340.0,0.10586859]
[1748877711896,0.01916497,104350.0,104340.0,0.10586859]
[1748877712098,0.00958239,104350.0,104340.0,0.09628454]
[1748877712489,0.01916488,104350.0,104340.0,0.09628454]
[1748877712674,0.02874755,104350.0,104340.0,0.10586859]
[1748877712879,0.02874755,104350.0,104340.0,0.09628454]
[1748877713079,0.04909265,104350.0,104340.0,0.09628454]
[1748877714462,0.02992749,104350.0,104340.0,0.09628454]
[1748877714690,0.03951016,104350.0,104340.0,0.09628454]
[1748877715101,0.02992749,104350.0,104340.0,0.28796558]
[1748877715306,0.03951007,104350.0,104340.0,0.09628454]
[1748877715744,0.04909283,104350.0,104340.0,0.09628454]
[1748877716157,0.03951007,104350.0,104340.0,0.09628454]
[1748877716364,0.03951007,104350.0,104340.0,0.09428454]
[1748877716622,0.03951007,104350.0,104340.0,0.10386859]
[1748877716839,0.03951007,104350.0,104340.0,0.09528454]
[1748877717064,0.03951007,104350.0,104340.0,0.04528454]
[1748877717065,0.24438283,104350.0,104340.0,0.04528454]
[1748877717275,0.26354845,104350.0,104340.0,0.04328454]
[1748877717699,0.26354845,104350.0,104340.0,0.04428454]
[1748877717985,0.24075597,104350.0,104340.0,0.04428454]
[1748877718199,0.0490933,104350.0,104340.0,0.09428454]
[1748877718413,0.03951035,104350.0,104340.0,0.09428454]
[1748877718618,0.0490932,104350.0,104340.0,0.09428454]
[1748877718821,0.05867624,104350.0,104340.0,0.09428454]
[1748877719379,0.0490932,104350.0,104340.0,0.09428454]
[1748877719586,0.05867615,104350.0,104340.0,0.09428454]
[1748877720537,0.0490932,104350.0,104340.0,0.09428454]
[1748877720721,0.03950998,104350.0,104340.0,0.09428454]
[1748877720869,0.04909274,104350.0,104340.0,0.09428454]
[1748877721693,0.05867559,104350.0,104340.0,0.09428454]
[1748877722095,0.0203451,104350.0,104340.0,0.28596558]
[1748877722294,0.02874489,104360.0,104350.0,0.01]
[1748877722495,0.02874489,104360.0,104350.0,0.0417]
[1748877722900,0.22997122,104360.0,104350.0,0.0317]
[1748877723156,0.23955343,104360.0,104350.0,0.0317]
[1748877723507,0.22997195,104360.0,104350.0,0.0817]
[1748877723713,0.22139038,104360.0,104350.0,0.0817]
[1748877724056,0.22139038,104360.0,104350.0,0.066]
[1748877724299,0.20322651,104360.0,104350.0,0.05]
[1748877725317,0.26617852,104360.0,104350.0,0.05]
[1748877725689,0.26617852,104360.0,104340.0,0.04298454]
[1748877725891,0.2108282,104350.0,104340.0,0.09298454]
[1748877726098,0.01916553,104350.0,104340.0,0.09298454]
[1748877726304,0.02874838,104350.0,104340.0,0.09298454]
[1748877726535,0.01916534,104350.0,104340.0,0.09298454]
[1748877726783,0.03833114,104350.0,104340.0,0.09298454]
[1748877726929,0.02874819,104350.0,104340.0,0.09398454]
[1748877727127,0.02874819,104350.0,104340.0,0.04398454]
[1748877727334,0.02874819,104350.0,104340.0,0.09398454]
[1748877727756,0.02874819,104350.0,104340.0,0.09298454]
[1748877727963,0.01916488,104350.0,104340.0,0.04398454]
[1748877728124,0.01916488,104350.0,104340.0,0.09398454]
[1748877728317,0.24098015,104360.0,104350.0,0.0165]
[1748877728627,0.24098015,104360.0,104350.0,0.032]
[1748877728807,0.24098015,104360.0,104350.0,0.082]
[1748877729042,0.2313984,104360.0,104350.0,0.082]
[1748877729261,0.22181637,104360.0,104350.0,0.082]
[1748877729671,0.22281637,104360.0,104350.0,0.082]
[1748877730067,0.22281637,104360.0,104350.0,0.0665]
[1748877730363,0.25258837,104360.0,104350.0,0.0665]
[1748877732546,0.05136186,104360.0,104350.0,0.28324571]
[1748877732775,0.04175309,104360.0,104350.0,0.082]
[1748877732974,0.05133512,104360.0,104350.0,0.082]
[1748877733843,0.24297942,104360.0,104350.0,0.082]
[1748877734021,0.26148411,104360.0,104350.0,0.082]
[1748877734436,0.25256163,104360.0,104350.0,0.082]
[1748877734842,0.25256163,104360.0,104350.0,0.0665]
[1748877735028,0.24231835,104360.0,104350.0,0.0665]
[1748877735331,0.20124562,104350.0,104340.0,0.03118454]
[1748877736489,0.20124562,104350.0,104340.0,0.08218454]
[1748877736729,0.20124562,104350.0,104340.0,0.00248454]
[1748877737000,0.30059992,104350.0,104340.0,0.00248454]
[1748877737208,0.30059992,104350.0,104320.0,0.0315]
[1748877737209,0.21086888,104330.0,104320.0,0.0315]
[1748877737427,0.21086888,104330.0,104310.0,0.01]
[1748877737428,0.0095857,104320.0,104310.0,0.0408]
[1748877737635,0.19169941,104330.0,104310.0,0.0408]
[1748877738061,0.00958561,104320.0,104310.0,0.0408]
[1748877738351,0.01917104,104320.0,104310.0,0.0408]
[1748877738579,0.01917058,104320.0,104310.0,0.0408]
[1748877738790,0.01917048,104320.0,104310.0,0.1003868]
[1748877738999,0.28755209,104340.0,104320.0,0.0817]
[1748877739204,0.2204532,104330.0,104320.0,0.0817]
[1748877740367,0.27125373,104330.0,104320.0,0.0817]
[1748877740759,0.26166941,104330.0,104320.0,0.0817]
[1748877741164,0.25208481,104330.0,104320.0,0.0162]
[1748877741779,0.24249994,104330.0,104320.0,0.0162]
[1748877741987,0.24349994,104330.0,104320.0,0.0162]
[1748877742437,0.24449994,104330.0,104320.0,0.0162]
[1748877742585,0.20130367,104320.0,104310.0,0.34442]
[1748877742786,0.25546964,104320.0,104310.0,0.0323]
[1748877743345,0.27458598,104320.0,104310.0,0.0323]
[1748877743645,0.23000562,104320.0,104310.0,0.0323]
[1748877743958,0.23000562,104320.0,104310.0,0.0823]
[1748877744238,0.23000562,104320.0,104310.0,0.0323]
[1748877744467,0.22041974,104320.0,104310.0,0.0323]
[1748877744876,0.22049484,104310.0,104300.0,0.11836378]
[1748877745082,0.22049594,104310.0,104300.0,0.10836378]
[1748877745298,0.22049594,104310.0,104300.0,0.15836378]
[1748877745716,0.01917297,104310.0,104300.0,0.15836378]
[1748877745920,0.25895756,104310.0,104300.0,0.15836378]
[1748877746119,0.26954436,104310.0,104300.0,0.08154529]
[1748877746320,0.26095792,104310.0,104300.0,0.08154529]
[1748877746738,0.26095746,104310.0,104300.0,0.08154529]
[1748877747168,0.22249575,104310.0,104300.0,0.08154529]
[1748877748639,0.02117223,104310.0,104300.0,0.09154529]
[1748877748846,0.23208155,104310.0,104300.0,0.09154529]
[1748877749066,0.03075867,104310.0,104300.0,0.09154529]
[1748877749275,0.0403452,104310.0,104300.0,0.09154529]
[1748877749479,0.24166808,104310.0,104300.0,0.08154529]
[1748877749685,0.2418644,104310.0,104300.0,0.03154529]
[1748877749898,0.3377187,104310.0,104300.0,0.00014529]
[1748877750321,0.3377187,104310.0,104300.0,0.01604529]
[1748877750734,0.30876371,104310.0,104300.0,0.01604529]
[1748877750941,0.21290941,104310.0,104300.0,0.03174529]
[1748877751774,0.20132288,104310.0,104300.0,0.03174529]
[1748877751982,0.20332288,104310.0,104300.0,0.03174529]
[1748877752188,0.20532288,104310.0,104300.0,0.03174529]
[1748877755386,0.28099164,104310.0,104300.0,0.03174529]
[1748877755593,0.21490932,104310.0,104300.0,0.03174529]
[1748877756631,0.01358616,104310.0,104300.0,0.22349984]
[1748877756857,0.03275912,104310.0,104300.0,0.09174529]
[1748877757071,0.01358616,104310.0,104300.0,0.09174529]
[1748877757279,0.004,104310.0,104300.0,0.88463656]
[1748877757484,0.004,104310.0,104300.0,0.88223999]
[1748877758506,0.04787234,104320.0,104310.0,0.29362288]
[1748877758716,0.05745767,104320.0,104310.0,0.29362297]
[1748877758920,0.05745767,104320.0,104310.0,0.0923]
[1748877759093,0.0670431,104320.0,104310.0,0.1018868]
[1748877759302,0.0670431,104320.0,104310.0,0.0923]
[1748877759619,0.0680431,104320.0,104310.0,0.0923]
[1748877759773,0.07862871,104320.0,104310.0,0.0923]
[1748877760096,0.07862862,104320.0,104310.0,0.0923]
[1748877760961,0.11014878,104320.0,104310.0,0.0923]
[1748877761164,0.11973466,104320.0,104310.0,0.0923]
[1748877761372,0.29228169,104320.0,104310.0,0.0923]
[1748877761781,0.09097802,104320.0,104310.0,0.0923]
[1748877762015,0.1005639,104320.0,104310.0,0.0923]
[1748877762224,0.10056381,104320.0,104310.0,0.0923]
[1748877762632,0.09097802,104320.0,104310.0,0.0923]
[1748877762984,0.1005639,104320.0,104310.0,0.0923]
[1748877763214,0.09097756,104320.0,104310.0,0.0923]
[1748877763425,0.10056335,104320.0,104310.0,0.0923]
[1748877764177,0.05945813,104320.0,104310.0,0.0923]
[1748877764399,0.05945804,104320.0,104310.0,0.0923]
[1748877765492,0.06904374,104320.0,104310.0,0.39442]
[1748877766128,0.26076153,104320.0,104310.0,0.0923]
[1748877766334,0.24159096,104320.0,104310.0,0.0823]
[1748877766537,0.33410218,104320.0,104310.0,0.0823]
[1748877767534,0.32451666,104320.0,104310.0,0.0823]
[1748877768391,0.23200544,104320.0,104310.0,0.0823]
[1748877769924,0.05945814,104320.0,104310.0,0.0823]
[1748877770125,0.06904384,104320.0,104310.0,0.0823]
[1748877770421,0.05945805,104320.0,104310.0,0.0823]
[1748877770647,0.05945805,104320.0,104310.0,0.49759697]
[1748877770648,0.002,104320.0,104310.0,0.49759697]
[1748877770880,0.002,104320.0,104310.0,0.49520036]
[1748877771514,0.002,104320.0,104310.0,0.83520036]
[1748877772195,0.002,104320.0,104310.0,1.23520036]
[1748877772361,0.001,104320.0,104310.0,1.23520036]
[1748877772560,0.01916671,104340.0,104330.0,0.30306888]
[1748877772877,0.01916671,104340.0,104330.0,0.78629849]
[1748877773214,0.01916671,104340.0,104330.0,0.78629858]
[1748877773422,0.01916671,104340.0,104330.0,0.79588336]
[1748877773775,0.01916671,104340.0,104330.0,0.78629858]
[1748877774382,0.02116671,104340.0,104330.0,0.78629858]
[1748877774825,0.0327503,104340.0,104330.0,0.78629868]
[1748877775036,0.01358322,104340.0,104330.0,0.80546815]
[1748877775242,0.004,104340.0,104330.0,0.81505275]
[1748877775444,0.004,104340.0,104330.0,0.82463707]
[1748877777183,0.004,104340.0,104330.0,1.16463707]
[1748877778018,0.002,104340.0,104330.0,1.16463707]
[1748877778221,0.04712335,104360.0,104350.0,0.0821]
[1748877778463,0.04712335,104360.0,104350.0,0.1779543]
[1748877778676,0.03754142,104360.0,104350.0,0.1879543]
[1748877778879,0.03754142,104360.0,104350.0,0.19753743]
[1748877779081,0.03754133,104360.0,104350.0,0.39878314]
[1748877779487,0.04760726,104360.0,104350.0,0.1879543]
[1748877779691,0.04002542,104360.0,104350.0,0.70074314]
[1748877779895,0.02086228,104360.0,104350.0,0.80524599]
[1748877780108,0.02086228,104360.0,104350.0,0.81482866]
[1748877780516,0.02086228,104360.0,104350.0,0.82441115]
[1748877780716,0.02086228,104360.0,104350.0,0.82441124]
[1748877781353,0.02086228,104360.0,104350.0,0.8244106]
[1748877785693,0.00248409,104360.0,104350.0,1.24137438]
[1748877785945,0.00248409,104360.0,104350.0,1.64168685]
[1748877786164,0.00248409,104360.0,104350.0,1.6562277]
[1748877786772,0.00248409,104360.0,104350.0,1.25591523]
[1748877786974,0.00048409,104360.0,104350.0,1.25591523]
[1748877787741,0.00048409,104360.0,104350.0,1.25791523]
[1748877787967,0.00048409,104360.0,104350.0,1.25591523]
[1748877788218,0.00048409,104360.0,104350.0,1.35695523]
[1748877788434,0.00048409,104360.0,104350.0,1.66079523]
[1748877788637,0.00048409,104360.0,104350.0,1.65879523]
[1748877789091,0.00048409,104360.0,104350.0,1.18907145]
[1748877789314,0.00048409,104360.0,104350.0,1.58579145]
[1748877789776,0.00048409,104360.0,104350.0,0.79982811]